Cogmind - Beta 10.2 *** ADVENTURER MODE // 2021.04.02 @ 22:33:07 Player: PflaumeKordel Result: Destroyed by S-10 Pest with Light Assault Rifle Performance ------------- Evolutions (1) 500 Regions Visited (3) 600 Robots Destroyed (36) 180 Value Destroyed (839) 839 Prototype IDs (5) 100 Alien Tech Used (0) 0 Bonus (0) 0 TOTAL SCORE: 2219 Bonus ------- None Cogmind --------- Core Integrity 0/400 Matter 104/300 Energy 460/460 System Corruption 1% Temperature Cool (55) Movement Core (700) Ox13 Location -9/Storage Parts ------- > --- POWER (1) -------- Light Nuclear Core > --- PROPULSION (2) --- (None) > --- UTILITY (3) ------ High-capacity Storage Unit Large Battery > --- WEAPON (3) ------- (None) > --- INVENTORY (12) --- Light Nuclear Core Cooling System Large Storage Unit High-capacity Battery (400) Weight Redist. System Weight Redist. System Terrain Scan Processor Particle Charger ECM Suite Drone Bay (2/2) Grenade Launcher Peak State ------------ > --- POWER ------------ Light Nuclear Core > --- PROPULSION ------- Wheel Wheel > --- UTILITY ---------- High-capacity Storage Unit Large Battery Hardened Light Armor Plating > --- WEAPON ----------- Rocket Launcher Missile Launcher Missile Launcher > --- INVENTORY -------- Light Nuclear Core Light Nuclear Core Small Storage Unit Large Storage Unit High-capacity Battery Weight Redist. System Weight Redist. System Particle Charger Particle Charger ECM Suite Grenade Launcher [Rating: 19] Favorites ----------- Power Light Nuclear Core Engine Ion Engine Power Core Light Nuclear Core Propulsion Wheel Treads Light Treads Wheel Wheel Hover Unit Hover Unit Utility High-capacity Storage Unit Device Particle Charger Storage High-capacity Storage Unit Processor Signal Interpreter Protection Light Armor Plating Weapon Missile Launcher Energy Gun Medium Laser Ballistic Gun Light Assault Rifle Launcher Missile Launcher Build | -11 -10 -9 -9 ------- Run | Scr Mat Mat Sto Slots Evolved 2 | . . 2 . Power . | . . . . Propulsion . | . . . . Utility 1 | . . 1 . Weapon 1 | . . 1 . Parts Attached 43 | 6 6 22 9 Power 6 | 1 1 2 2 Engine 2 | 1 1 . . Core 4 | . . 2 2 Reactor . | . . . . Propulsion 11 | 2 2 5 2 Treads 2 | . . . 2 Leg . | . . . . Wheel 8 | 2 2 4 . Hover 1 | . . 1 . Flight . | . . . . Utility 9 | 1 2 5 1 Device 1 | . . . 1 Storage 4 | 1 2 1 . Processor 1 | . . 1 . Hackware . | . . . . Protection 3 | . . 3 . Artifact . | . . . . Weapon 17 | 2 1 10 4 Energy Gun 5 | 1 . . 4 Energy Cannon . | . . . . Ballistic Gun 4 | 1 . 3 . Ballistic Cannon . | . . . . Launcher 8 | . 1 7 . Special Weapon . | . . . . Impact Weapon . | . . . . Slashing Weapon . | . . . . Piercing Weapon . | . . . . Special Melee Weapon . | . . . . Unidentified Prototypes . | . . . . Parts Lost 16 | . . 3 13 Power 1 | . . . 1 Propulsion 6 | . . 3 3 Utility 2 | . . . 2 Weapon 7 | . . . 7 Highest Loss Streak 6 | . . 1 6 Average Slot Usage (%) 86 | . 95 90 71 Engine 5 | . 14 2 . Core 5 | . . 7 7 Treads 1 | . . . 6 Wheel 15 | . 28 13 3 Device 1 | . . . 4 Storage 20 | . 24 17 22 Processor 1 | . . 4 . Protection 5 | . . 9 4 Energy Gun 3 | . . . 11 Ballistic Gun 8 | . 14 8 . Launcher 16 | . 13 23 10 Naked Turns . | . . . . Heaviest Build 61 | 11 57 61 61 Greatest Support 40 | 32 32 26 40 Greatest Overweight (x) 19 | . 2 19 16 Average Overweight (x) 2 | . 1 3 5 Largest Inventory Capacity 18 | 6 18 18 12 Average Capacity 12 | 5 13 12 12 Most Carried 12 | 1 9 12 12 Average Carried 8 | . 5 9 11 Final Capacity 18 | 6 18 12 12 Final Carried 12 | 1 9 12 11 Class Distribution -------------------- 51% | Mutant 23% | Bomber 20% | Tank 3% | Scavenger-Mutant Dominant Class ---------------- Mutant | -10/Materials Tank | -9/Materials Bomber | -9/Storage Resources | -11 -10 -9 -9 ----------- Run | Scr Mat Mat Sto Matter Collected 792 | 160 132 395 105 Remotely . | . . . . Salvage Created 766 | . 368 245 153 Parts 69 | . 30 28 11 Haulers Intercepted . | . . . . Recyclers Shooed 1 | . 1 . . Parts Field Recycled . | . . . . Retrieved Matter . | . . . . Parts Self-Destructed . | . . . . Prevented . | . . . . Kills | -11 -10 -9 -9 ------- Run | Scr Mat Mat Sto Combat Hostiles Destroyed 24 | . 13 7 4 Guns 10 | . 5 1 4 AOE 14 | . 8 6 . Classes Destroyed 7 | . 6 1 . Worker 3 | . 2 1 . Builder 5 | . 1 4 . Recycler 1 | . 1 . . Watcher 3 | . 1 2 . Swarmer 7 | . 6 . 1 Grunt 11 | . 7 3 1 Sentry 6 | . . 4 2 Best Kill Streak 5 | . 5 5 3 Combat Bots Only 3 | . 3 2 3 Max Kills in Single Turn 5 | . 3 5 1 Gunslinging . | . . . . Exploded 3 | . 3 2 . Melee . | . . . . Uniques/NPCs Destroyed . | . . . . Combat | -11 -10 -9 -9 -------- Run | Scr Mat Mat Sto Damage Taken 1739 | . 96 462 1181 Core 413 | . 12 75 326 Absorbed by Shields . | . . . . Core Remaining (%) 97 | 100 95 . . Volleys Fired 48 | . 22 12 14 Largest 3 | . 2 3 3 Hottest 150 | . 50 105 150 Shots Fired 96 | . 37 30 29 Gun 60 | . 22 9 29 Cannon . | . . . . Launcher 36 | . 15 21 . Special . | . . . . Kinetic 31 | . 22 9 . Thermal 29 | . . . 29 Explosive 36 | . 15 21 . Electromagnetic . | . . . . Robot Hit Streak 16 | . 12 16 16 Robot Miss Streak 1 | . 1 1 1 Penetration Max . | . . . . Secondary Targets . | . . . . Shots Hit Robots 66 | . 31 12 23 Core Hits 61 | . 30 22 9 Critical Hits . | . . . . Critical Kills . | . . . . Critical Parts Destroyed . | . . . . Melee Attacks . | . . . . Impact . | . . . . Slashing . | . . . . Piercing . | . . . . Sneak Attacks . | . . . . Combat Hostiles . | . . . . Follow-up Attacks . | . . . . Damage Inflicted 2550 | . 1093 1147 310 Guns 511 | . 145 92 274 Cannons . | . . . . Explosions 1994 | . 948 1046 . Melee . | . . . . Ramming 45 | . . 9 36 Kinetic 237 | . 145 92 . Thermal 274 | . . . 274 Explosive 1994 | . 948 1046 . Electromagnetic . | . . . . Impact . | . . . . Slashing . | . . . . Piercing . | . . . . Highest Corruption 1 | . . . 1 Average Corruption 1 | . . . 1 Corruption Purged . | . . . . Effects 3 | . . . 3 Message Errors 1 | . . . 1 Data Loss (minor) 2 | . . . 2 Overload Shots . | . . . . Overflow Damage 64 | . 6 58 . Projectiles . | . . . . Explosions 64 | . 6 58 . Melee . | . . . . Knockbacks . | . . . . Impact . | . . . . Kinetic . | . . . . Secondary . | . . . . Self-Inflicted Damage 138 | . . 126 12 Shots 3 | . . 3 . Rammed 5 | . . 1 4 Targets Rammed 5 | . . 1 4 Kicked . | . . . . Crushed . | . . . . Highest Temperature 390 | . 28 57 390 Average Temperature 104 | . 10 22 206 Received Heat Transfer 630 | . 54 180 396 Siege Activations . | . . . . Robots Corrupted . | . . . . Combat Hostiles . | . . . . Parts Fried . | . . . . Impact Corruptions . | . . . . Robots Melted . | . . . . Combat Hostiles . | . . . . Parts Melted . | . . . . Heat Transferred 740 | . . . 740 Parts Sabotaged . | . . . . Parts Stolen . | . . . . Parts Stripped . | . . . . Power Chain Reactions . | . . . . Missiles Intercepted . | . . . . Alert | -11 -10 -9 -9 ------- Run | Scr Mat Mat Sto Peak Influence 390 | . 390 303 121 Initial 79 | . . 79 74 Average 152 | . 195 190 66 Maximum Alert Level 1 | . 1 1 . Low Security (%) 68 | 100 45 62 100 Level 1 31 | . 54 37 . Level 2 . | . . . . Level 3 . | . . . . Level 4 . | . . . . Level 5 . | . . . . High Security . | . . . . Max Security . | . . . . Squads Dispatched 4 | . 1 3 . Investigation 3 | . 1 2 . Extermination . | . . . . Reinforcement 1 | . . 1 . Assault . | . . . . Garrison . | . . . . Intercept . | . . . . Construction Impeded . | . . . . Haulers Reinforced . | . . . . Stealth | -11 -10 -9 -9 --------- Run | Scr Mat Mat Sto Distress Signals 2 | . 2 . . Communications Jammed . | . . . . Distress Signals . | . . . . Times Spotted 39 | . 18 12 9 Peak Tracking Total 7 | . 4 4 7 Tactical Retreats 1 | . 1 . . Traps | -11 -10 -9 -9 ------- Run | Scr Mat Mat Sto Traps Triggered 7 | . 1 5 1 Indirectly . | . . . . Trap Hack Attempts . | . . . . Triggered . | . . . . Disarmed . | . . . . Reprogrammed . | . . . . Reused . | . . . . Traps Extracted . | . . . . Installed . | . . . . Triggered . | . . . . Machines | -11 -10 -9 -9 ---------- Run | Scr Mat Mat Sto Machines Disabled 3 | . . 3 . Max in Single Turn 2 | . . 2 . Machines Sabotaged . | . . . . Garrisons Compromised . | . . . . Overloaded Fab Kills . | . . . . Fab Network Shutdowns . | . . . . Hacking | -11 -10 -9 -9 --------- Run | Scr Mat Mat Sto Machines Accessed 14 | . 7 2 5 Terminals 11 | . 6 1 4 Fabricators . | . . . . Repair Stations 2 | . 1 . 1 Recycling Units . | . . . . Scanalyzers 1 | . . 1 . Garrison Access . | . . . . Total Hacks 29 | . 17 6 6 Successful 20 | . 12 4 4 Failed 9 | . 5 2 2 Catastrophic . | . . . . Database Lockouts . | . . . . Manual . | . . . . Terminals 20 | . 14 2 4 Fabricators . | . . . . Repair Stations 5 | . 3 . 2 Recycling Units . | . . . . Scanalyzers 4 | . . 4 . Garrison Access . | . . . . Terminal Hacks 15 | . 10 1 4 Record 3 | . 3 . . Prototype ID Bank 5 | . 5 . . Open Door 1 | . . . 1 Locate Traps 1 | . 1 . . Surveillance Status 1 | . . . 1 Transport Status 1 | . . . 1 Zone Layout 3 | . 1 1 1 Fabricator Hacks . | . . . . Repair Station Hacks 2 | . 2 . . Scan Component 2 | . 2 . . Recycling Unit Hacks . | . . . . Scanalyzer 3 | . . 3 . Insert Component 2 | . . 2 . Analyze 1 | . . 1 . Garrison Access Hacks . | . . . . Unauthorized Hacks . | . . . . Terminals . | . . . . Fabricators . | . . . . Repair Stations . | . . . . Recycling Units . | . . . . Scanalyzers . | . . . . Garrison Access . | . . . . Data Cores Recovered . | . . . . Used . | . . . . Hacking Detections 6 | . 3 1 2 Full Trace Events 1 | . . 1 . Feedback Events . | . . . . Feedback Blocked . | . . . . Robot Schematics Acquired . | . . . . Robots Built . | . . . . Matter . | . . . . Time . | . . . . Total Robot Build Rating . | . . . . Part Schematics Acquired 1 | . . 1 . Parts Built . | . . . . Matter . | . . . . Time . | . . . . Total Part Build Rating . | . . . . Parts Repaired . | . . . . Time . | . . . . Parts Recycled . | . . . . Recycled Matter . | . . . . Retrieved Matter . | . . . . Retrieved Components . | . . . . Parts Scanalyzed 1 | . . 1 . Part Schematics Acquired 1 | . . 1 . Parts Damaged . | . . . . Bothacking | -11 -10 -9 -9 ------------ Run | Scr Mat Mat Sto Used RIF Installer . | . . . . Robots Hacked . | . . . . Non-combat . | . . . . Combat . | . . . . Robot Hacks Applied . | . . . . Relay Couplers Released . | . . . . Robots Rewired . | . . . . Allies Hacked . | . . . . Hacks Repelled . | . . . . Allies | -11 -10 -9 -9 -------- Run | Scr Mat Mat Sto Total Allies . | . . . . Largest Group . | . . . . Highest-Rated Group . | . . . . Highest-Rated Ally . | . . . . Total Orders . | . . . . Ally Attacks . | . . . . Total Damage . | . . . . Kills . | . . . . Allies Corrupted . | . . . . Allies Melted . | . . . . Intel | -11 -10 -9 -9 ------- Run | Scr Mat Mat Sto Robot Analysis Total . | . . . . Derelict Logs Recovered . | . . . . Drone Launches . | . . . . Drone Recoveries . | . . . . Exploration | -11 -10 -9 -9 ------------- Run | Scr Mat Mat Sto Turns Passed 1724 | 70 557 648 449 Spaces Moved 1051 | 61 456 356 178 Core 37 | 3 . 12 22 Treads 58 | . . . 58 Legs . | . . . . Wheels 942 | 58 456 330 98 Hover 14 | . . 14 . Flight . | . . . . Fastest Speed 50 | 50 100 100 130 Average Speed 139 | 97 101 153 220 Slowest Speed 1000 | 100 110 1000 850 Overloaded Moves . | . . . . Propulsion Burnouts . | . . . . Robots Hopped . | . . . . Cave-ins Triggered . | . . . . Exploration Rate (%) 26 | 4 64 21 17 Regions Visited 3 Branch Regions 1 Pre-discovered Areas . | . . . . Known Exits Taken . | . . . . Unknown Exits Taken 3 | 1 1 1 . Scrap Searched . | . . . . Spaces Dug . | . . . . Terrain Destroyed 245 | . 63 182 . Melee . | . . . . Projectile . | . . . . AOE 245 | . 63 182 . Terrain Rammed . | . . . . Walls Destroyed . | . . . . Machines Disabled . | . . . . Actions | -11 -10 -9 -9 --------- Run | Scr Mat Mat Sto Total 1228 | 68 521 429 210 Wait 34 | 1 20 12 1 Move 1048 | 60 455 355 178 Hop . | . . . . Pick Up 27 | 1 11 13 2 Fast Attach 25 | 6 1 12 6 Attach 16 | . 4 9 3 Detach 11 | . 4 6 1 Swap 2 | . 1 1 . Drop 12 | . 3 8 1 Fire 48 | . 22 12 14 Melee . | . . . . Ram 2 | . . 1 1 Kick . | . . . . Crush 3 | . . . 3 Escape Stasis . | . . . . Rewire . | . . . . Trap . | . . . . Miscellaneous . | . . . . Route ------- -11/Scrapyard -10/Materials (discovered 5 exits: *Mat x3 / [*Min x2]) -9/Materials (discovered 2 exits: [*Min] / *Sto) -9/Storage History --------- Turn | Location | Event 28 | -11/Scrapyard | Discovered new exit (range 16) 71 | -11/Scrapyard | Entered Materials 175 | -10/Materials | Discovered new exit (range 13) 254 | -10/Materials | Discovered new exit (range 7) 340 | -10/Materials | Build established: Mutant 380 | -10/Materials | Discovered new exit (range 11) 410 | -10/Materials | Discovered new exit (range 12) 605 | -10/Materials | Discovered new exit (range 15) 628 | -10/Materials | Entered another Materials area 628 | -9/Materials | Evolved 2 slots: Utility x1, Weapon x1 683 | -9/Materials | Discovered new exit (range 15) 1054 | -9/Materials | Build established: Tank 1058 | -9/Materials | Discovered new exit (range 15) 1276 | -9/Materials | Entered Storage 1477 | -9/Storage | Core integrity fell below 50% 1501 | -9/Storage | Lost 6 parts (1p1n1u3w) 1702 | -9/Storage | Core integrity fell below 20% 1725 | -9/Storage | Destroyed by S-10 Pest with Light Assault Rifle Last Messages --------------- 01605_ Acquired Med. Laser. 01624_ E401&RY&/ZDZ,OFFFQP>9CTURYA3BM 01657_ K-01 Serf collects debris. 01661_ G-34 Mercenary destroyed. 01672_ Y-45 Defender destroyed. 01672_ K-01 Serf collects debris. 01677_ U-05 Engineer builds a Door. 01680_ K-01 Serf collects debris. 01685_ U-05 Engineer builds a Door. 01687_ Acquired 51 matter. 01688_ K-01 Serf collects debris. 01692_ S-10 Pest destroyed. 01694_ K-01 Serf collects debris. 01695_ K-01 Serf destroyed. 01699_ Slammed into S-10 Pest. 01702_ Med. Laser destroyed. 01709_ Slammed into S-10 Pest. 01710_ S-10 Pest destroyed. 01712_ Particle Charger destroyed. 01717_ Lgt. Treads destroyed. Map ----- +----------------------------------------------------+ | | | | | | | | | | | | | | | | | | | | | | | | | | | ########?????????????????????????????????????????? | | #?????????????????????????????????????????? | | T #?????????????????????????????????????????? | | ![[ ####??????????????????????????????????????? | | ! """#??????????###########?????????????????? | | [ T"#??????????# #?????????????????? | | """#??????????# #?????????????????? | | ! ####??????????# u #?????????????????? | | ! #?????????????# ######????????????? | | ##+###############???# =#=%= ####?????????? | | #???# sY/%** ??? | | ##### s *#*%= ??? | | a/ @ #%[ ##### #???? | | #+#############+################? ###????????????? | | ######??# ???????????????/#??????????????? | | #!!!!#??# ?????????????? ??????????????? | | ! #??# #???????????? ?????????????? | | #T# !!!#??# [[ ##????????????? ?????????????? | | ########??# [! #?????????????? ????????????? | | ??????????# [ #??????????????? ???????????? | | ??????????# #??????????????? ???????????? | | ??????????# #???????????????? ??????????? | | ??????????##+########????????????????##??????????? | | ?????????????????????????????????????????????????? | | ?????????????????????????????????????????????????? | | ?????????????????????????????????????????????????? | | ?????????????????????????????????????????????????? | | ?????????????????????????????????????????????????? | | ?????????????????????????????????????????????????? | | ?????????????????????????????????????????????????? | | ?????????????????????????????????????????????????? | | ?????????????????????????????????????????????????? | | ?????????????????????????????????????????????????? | | ?????????????????????????????????????????????????? | | ?????????????????????????????????????????????????? | | ?????????????????????????????????????????????????? | | ?????????????????????????????????????????????????? | +----------------------------------------------------+ Best States ------------- Heat Dissipation 28 Energy Generation 14 Energy Capacity 460 Matter Stores 300 Matter Capacity 300 Sight Range 16 Terrain Scan Density 10 Armor Coverage 150 Resistance: KI 20 Resistance: TH 20 Resistance: EX 20 Resistance: EM 20 Resistance: I 20 Resistance: S 20 Resistance: P 20 Evasion (%) 40 Recoil Reduction 2 Particle Charging 15 Offensive Hacking 10 Item Schematics ----------------- Hcp. Battery | -9/Materials | Scanalyzed Robot Schematics ------------------ None Fabricated ------------ Nothing Alien Tech Used ----------------- None Achievements -------------- None Challenges ------------ None Game ------ Seed MiniControlBlaster Manual? 0 Play Time 00:23:56 Cumulative 6.0 hours Start 2021.04.02 @ 22:07:45 End 2021.04.02 @ 22:33:07 Sessions 1 Manual Loads 0 Difficulty Adventurer Special Mode None Game No. 10 Rogue 0 Adventurer 10 Explorer 0 Win Type - Total 0 Types 0/0/0/0/0/0/0/0/0 Lore% 5 Gallery% 12 Achievement% 11 Wizard Run 0 Options --------- ASCII 0 Keyboard 1 Movement Arrows Keybinds 0 Fullscreen 1 Font 24/Smallcaps Map View 76x50 Tactical HUD 1 Map Filters NONE Filters NONE Steam 1 RUN: 9d514dc2-f41d-4cdd-adbe-041b0ba1514a